[Event "Titled Tuesday Blitz April 26 Early 2022"]
[White "Darini, Pouria"]
[Black "Vokhidov, Shamsiddin"]
[WhiteFideId "12502200"]
[BlackFideId "14204223"]
[WhiteElo "2489"]
[BlackElo "2611"]
[Result "1-0"]
[Round "07"]
[TimeControl "180+1"]
[Date "2022.04.26"]
[WhiteClock "0:00:04"]
[BlackClock "0:00:00"]

1. e4 {[%clk 0:03:00]}  c5 {[%clk 0:03:00]} 2. Nf3 {[%clk 0:02:58]}  Nc6 {[%clk 0:03:01]} 3. Bb5 {[%clk 0:02:58]}  Nf6 {[%clk 0:03:01]} 4. Nc3 {[%clk 0:02:53]}  Nd4 {[%clk 0:03:01]} 5. e5 {[%clk 0:02:46]}  Nxb5 {[%clk 0:03:01]} 6. Nxb5 {[%clk 0:02:45]}  Nd5 {[%clk 0:03:01]} 7. O-O {[%clk 0:02:37]}  a6 {[%clk 0:02:35]} 8. Nc3 {[%clk 0:02:34]}  Nxc3 {[%clk 0:02:33]} 9. dxc3 {[%clk 0:02:35]}  e6 {[%clk 0:02:32]} 10. Ng5 {[%clk 0:01:51]}  d5 {[%clk 0:02:16]} 11. exd6 {[%clk 0:01:52]}  Bxd6 {[%clk 0:02:13]} 12. Qh5 {[%clk 0:01:51]}  g6 {[%clk 0:02:11]} 13. Qf3 {[%clk 0:01:33]}  O-O {[%clk 0:01:46]} 14. Rd1 {[%clk 0:01:33]}  Qc7 {[%clk 0:01:43]} 15. Ne4 {[%clk 0:01:00]}  Bxh2+ {[%clk 0:01:41]} 16. Kh1 {[%clk 0:01:00]}  f5 {[%clk 0:01:42]} 17. Bh6 {[%clk 0:00:53]}  Bf4 {[%clk 0:01:18]} 18. Ng5 {[%clk 0:00:09]}  Bxg5 {[%clk 0:00:47]} 19. Bxg5 {[%clk 0:00:10]}  Bd7 {[%clk 0:00:43]} 20. Bf4 {[%clk 0:00:11]}  Qc8 {[%clk 0:00:23]} 21. Be5 {[%clk 0:00:10]}  Bc6 {[%clk 0:00:19]} 22. Qf4 {[%clk 0:00:11]}  Qe8 {[%clk 0:00:19]} 23. f3 {[%clk 0:00:11]}  Rd8 {[%clk 0:00:18]} 24. Qg5 {[%clk 0:00:10]}  Rd7 {[%clk 0:00:17]} 25. Rxd7 {[%clk 0:00:06]}  Qxd7 {[%clk 0:00:17]} 26. c4 {[%clk 0:00:06]}  b5 {[%clk 0:00:13]} 27. cxb5 {[%clk 0:00:05]}  axb5 {[%clk 0:00:14]} 28. c3 {[%clk 0:00:06]}  Qd5 {[%clk 0:00:12]} 29. Re1 {[%clk 0:00:05]}  Qd7 {[%clk 0:00:09]} 30. Qh6 {[%clk 0:00:05]}  Rf7 {[%clk 0:00:06]} 31. Kh2 {[%clk 0:00:05]}  Qe7 {[%clk 0:00:06]} 32. Rd1 {[%clk 0:00:03]}  Bd5 {[%clk 0:00:05]} 33. b3 {[%clk 0:00:02]}  Qf8 {[%clk 0:00:05]} 34. Qg5 {[%clk 0:00:02]}  Qe7 {[%clk 0:00:05]} 35. Qh6 {[%clk 0:00:02]}  c4 {[%clk 0:00:05]} 36. bxc4 {[%clk 0:00:02]}  bxc4 {[%clk 0:00:06]} 37. Rb1 {[%clk 0:00:03]}  Rf8 {[%clk 0:00:04]} 38. Qf4 {[%clk 0:00:03]}  g5 {[%clk 0:00:04]} 39. Qg3 {[%clk 0:00:03]}  h6 {[%clk 0:00:05]} 40. Bd4 {[%clk 0:00:03]}  Kh7 {[%clk 0:00:05]} 41. Qe5 {[%clk 0:00:03]}  Kg6 {[%clk 0:00:06]} 42. Rb6 {[%clk 0:00:04]}  Qd7 {[%clk 0:00:05]} 43. Rd6 {[%clk 0:00:04]}  Qb7 {[%clk 0:00:05]} 44. a4 {[%clk 0:00:04]}  Kh7 {[%clk 0:00:00]} 45. a5 {[%clk 0:00:04]} 1-0


[Site "https://www.chess.com"]

[Event "Titled Tuesday Blitz April 26 Early 2022"]
[White "De Souza, Cristiano Gomes"]
[Black "Miszler, Levente"]
[WhiteFideId "2151758"]
[BlackFideId "763276"]
[WhiteElo "2068"]
[BlackElo "1966"]
[Result "0-1"]
[Round "07"]
[TimeControl "180+1"]
[Date "2022.04.26"]
[WhiteClock "0:00:18"]
[BlackClock "0:00:11"]

1. d4 {[%clk 0:03:00]}  Nf6 {[%clk 0:02:58]} 2. c4 {[%clk 0:03:00]}  g6 {[%clk 0:02:59]} 3. Nc3 {[%clk 0:02:58]}  Bg7 {[%clk 0:02:58]} 4. e4 {[%clk 0:02:58]}  d6 {[%clk 0:02:57]} 5. Nf3 {[%clk 0:02:58]}  O-O {[%clk 0:02:57]} 6. Be2 {[%clk 0:02:59]}  Nbd7 {[%clk 0:02:58]} 7. O-O {[%clk 0:02:59]}  e5 {[%clk 0:02:59]} 8. Be3 {[%clk 0:02:57]}  h6 {[%clk 0:02:56]} 9. h3 {[%clk 0:02:57]}  Nh5 {[%clk 0:02:51]} 10. Qd2 {[%clk 0:02:55]}  Kh7 {[%clk 0:02:51]} 11. Rfd1 {[%clk 0:02:54]}  f5 {[%clk 0:02:38]} 12. exf5 {[%clk 0:02:53]}  gxf5 {[%clk 0:02:39]} 13. dxe5 {[%clk 0:02:52]}  dxe5 {[%clk 0:02:36]} 14. Bc5 {[%clk 0:02:51]}  Rg8 {[%clk 0:02:29]} 15. Nh2 {[%clk 0:02:37]}  Nf4 {[%clk 0:02:27]} 16. Bf1 {[%clk 0:02:31]}  b6 {[%clk 0:02:16]} 17. Be3 {[%clk 0:02:30]}  Ng6 {[%clk 0:01:52]} 18. Qc2 {[%clk 0:02:26]}  f4 {[%clk 0:01:41]} 19. Bd3 {[%clk 0:02:22]}  Qg5 {[%clk 0:01:37]} 20. Be4 {[%clk 0:02:12]}  Rb8 {[%clk 0:01:19]} 21. Nf3 {[%clk 0:02:12]}  Qh5 {[%clk 0:01:14]} 22. Nd5 {[%clk 0:01:51]}  fxe3 {[%clk 0:01:07]} 23. Bxg6+ {[%clk 0:01:48]}  Qxg6 {[%clk 0:01:04]} 24. Qxg6+ {[%clk 0:01:48]}  Kxg6 {[%clk 0:01:05]} 25. Ne7+ {[%clk 0:01:48]}  Kf7 {[%clk 0:01:04]} 26. Nxg8 {[%clk 0:01:46]}  exf2+ {[%clk 0:01:03]} 27. Kxf2 {[%clk 0:01:46]}  Kxg8 {[%clk 0:01:04]} 28. Rd2 {[%clk 0:01:27]}  Kf7 {[%clk 0:00:59]} 29. Rad1 {[%clk 0:01:27]}  Nc5 {[%clk 0:00:54]} 30. Rd8 {[%clk 0:01:26]}  Bf6 {[%clk 0:00:48]} 31. b4 {[%clk 0:00:52]}  Bxd8 {[%clk 0:00:42]} 32. Rxd8 {[%clk 0:00:50]}  Ne6 {[%clk 0:00:31]} 33. Rh8 {[%clk 0:00:46]}  Kg7 {[%clk 0:00:20]} 34. Re8 {[%clk 0:00:45]}  e4 {[%clk 0:00:17]} 35. Ne5 {[%clk 0:00:39]}  Kf6 {[%clk 0:00:15]} 36. Nc6 {[%clk 0:00:37]}  Ra8 {[%clk 0:00:15]} 37. Ke3 {[%clk 0:00:32]}  Bb7 {[%clk 0:00:14]} 38. Rxa8 {[%clk 0:00:30]}  Bxa8 {[%clk 0:00:15]} 39. Nxa7 {[%clk 0:00:30]}  Ke5 {[%clk 0:00:15]} 40. Nb5 {[%clk 0:00:29]}  Bc6 {[%clk 0:00:13]} 41. Nc3 {[%clk 0:00:29]}  Nd4 {[%clk 0:00:12]} 42. b5 {[%clk 0:00:26]}  Bb7 {[%clk 0:00:12]} 43. a4 {[%clk 0:00:22]}  Nf5+ {[%clk 0:00:12]} 44. Kd2 {[%clk 0:00:20]}  Kd4 {[%clk 0:00:12]} 45. Ne2+ {[%clk 0:00:19]}  Kxc4 {[%clk 0:00:12]} 46. g4 {[%clk 0:00:20]}  e3+ {[%clk 0:00:11]} 47. Kc2 {[%clk 0:00:18]}  Nd4+ {[%clk 0:00:12]} 48. Nxd4 {[%clk 0:00:17]}  Kxd4 {[%clk 0:00:13]} 49. Kd1 {[%clk 0:00:17]}  Kd3 {[%clk 0:00:13]} 50. Ke1 {[%clk 0:00:17]}  e2 {[%clk 0:00:12]} 51. h4 {[%clk 0:00:18]}  Be4 {[%clk 0:00:11]} 52. g5 {[%clk 0:00:18]}  hxg5 {[%clk 0:00:11]} 53. hxg5 {[%clk 0:00:18]}  Bg6 {[%clk 0:00:11]} 0-1


[Site "https://www.chess.com"]

[Event "Titled Tuesday Blitz April 26 Early 2022"]
[White "Demchenko, Anton"]
[Black "Andreikin, Dmitry"]
[WhiteFideId "4160258"]
[BlackFideId "4158814"]
[WhiteElo "2539"]
[BlackElo "2736"]
[Result "0-1"]
[Round "07"]
[TimeControl "180+1"]
[Date "2022.04.26"]
[WhiteClock "0:00:02"]
[BlackClock "0:01:23"]

1. e4 {[%clk 0:03:00]}  c5 {[%clk 0:03:00]} 2. Nf3 {[%clk 0:03:01]}  Nc6 {[%clk 0:03:00]} 3. Bb5 {[%clk 0:03:00]}  g6 {[%clk 0:03:00]} 4. O-O {[%clk 0:03:00]}  Bg7 {[%clk 0:03:01]} 5. d3 {[%clk 0:03:01]}  d6 {[%clk 0:02:59]} 6. e5 {[%clk 0:03:01]}  dxe5 {[%clk 0:02:58]} 7. Bxc6+ {[%clk 0:03:01]}  bxc6 {[%clk 0:02:58]} 8. Re1 {[%clk 0:03:02]}  Qc7 {[%clk 0:02:57]} 9. Be3 {[%clk 0:03:02]}  Nf6 {[%clk 0:02:55]} 10. Bxc5 {[%clk 0:02:59]}  Nd7 {[%clk 0:02:56]} 11. Ba3 {[%clk 0:02:49]}  c5 {[%clk 0:02:55]} 12. d4 {[%clk 0:02:10]}  exd4 {[%clk 0:02:39]} 13. c3 {[%clk 0:02:05]}  O-O {[%clk 0:02:24]} 14. cxd4 {[%clk 0:02:05]}  Bb7 {[%clk 0:02:22]} 15. Nc3 {[%clk 0:01:58]}  cxd4 {[%clk 0:02:08]} 16. Nxd4 {[%clk 0:01:29]}  Ne5 {[%clk 0:02:07]} 17. Rc1 {[%clk 0:01:04]}  Qd7 {[%clk 0:02:04]} 18. Nb3 {[%clk 0:00:48]}  Qf5 {[%clk 0:01:52]} 19. Nc5 {[%clk 0:00:43]}  Nf3+ {[%clk 0:01:43]} 20. Kh1 {[%clk 0:00:18]}  Qf4 {[%clk 0:01:42]} 21. g3 {[%clk 0:00:13]}  Qh6 {[%clk 0:01:41]} 22. h4 {[%clk 0:00:10]}  Rad8 {[%clk 0:01:37]} 23. Nxb7 {[%clk 0:00:08]}  Rxd1 {[%clk 0:01:34]} 24. Rexd1 {[%clk 0:00:09]}  g5 {[%clk 0:01:33]} 25. Nc5 {[%clk 0:00:07]}  gxh4 {[%clk 0:01:32]} 26. Kg2 {[%clk 0:00:07]}  Ng5 {[%clk 0:01:29]} 27. Rh1 {[%clk 0:00:08]}  Qc6+ {[%clk 0:01:26]} 28. Kg1 {[%clk 0:00:04]}  h3 {[%clk 0:01:24]} 29. f3 {[%clk 0:00:01]}  Qxf3 {[%clk 0:01:23]} 30. Rc2 {[%clk 0:00:02]} 0-1


[Site "https://www.chess.com"]

[Event "Titled Tuesday Blitz April 26 Early 2022"]
[White "Djokic, Mihailo"]
[Black "Richter, Nils"]
[WhiteFideId "976440"]
[BlackFideId "12990809"]
[WhiteElo "2202"]
[BlackElo "2243"]
[Result "1-0"]
[Round "07"]
[TimeControl "180+1"]
[Date "2022.04.26"]
[WhiteClock "0:01:54"]
[BlackClock "0:02:22"]

1. e4 {[%clk 0:03:00]}  e6 {[%clk 0:02:59]} 2. d4 {[%clk 0:03:01]}  d5 {[%clk 0:03:00]} 3. Nc3 {[%clk 0:03:01]}  Nf6 {[%clk 0:03:01]} 4. Bg5 {[%clk 0:03:01]}  Be7 {[%clk 0:03:00]} 5. e5 {[%clk 0:03:01]}  Nfd7 {[%clk 0:03:00]} 6. h4 {[%clk 0:03:01]}  h6 {[%clk 0:03:00]} 7. Be3 {[%clk 0:03:01]}  a6 {[%clk 0:02:57]} 8. Qg4 {[%clk 0:03:01]}  Kf8 {[%clk 0:02:53]} 9. Nf3 {[%clk 0:02:57]}  c5 {[%clk 0:02:52]} 10. dxc5 {[%clk 0:02:54]}  Nxc5 {[%clk 0:02:46]} 11. O-O-O {[%clk 0:02:53]}  Nc6 {[%clk 0:02:44]} 12. Kb1 {[%clk 0:02:46]}  b5 {[%clk 0:02:44]} 13. Qf4 {[%clk 0:02:29]}  b4 {[%clk 0:02:41]} 14. Ne2 {[%clk 0:02:25]}  Ne4 {[%clk 0:02:35]} 15. Ned4 {[%clk 0:02:20]}  Nxd4 {[%clk 0:02:34]} 16. Nxd4 {[%clk 0:02:17]}  Rb8 {[%clk 0:02:29]} 17. Nc6 {[%clk 0:02:16]}  Qc7 {[%clk 0:02:29]} 18. Nxb8 {[%clk 0:02:16]}  Qxb8 {[%clk 0:02:30]} 19. Bd3 {[%clk 0:02:05]}  Nc3+ {[%clk 0:02:29]} 20. Ka1 {[%clk 0:01:59]}  Nxd1 {[%clk 0:02:28]} 21. Rxd1 {[%clk 0:01:59]}  a5 {[%clk 0:02:28]} 22. Bg6 {[%clk 0:01:56]}  f5 {[%clk 0:02:23]} 23. exf6 {[%clk 0:01:56]}  Bd6 {[%clk 0:02:21]} 24. fxg7+ {[%clk 0:01:54]}  Kxg7 {[%clk 0:02:22]} 25. Qf7# {[%clk 0:01:54]} 1-0


[Site "https://www.chess.com"]

[Event "Titled Tuesday Blitz April 26 Early 2022"]
[White "Drygalov, Sergey"]
[Black "Stribuk, Artiom"]
[WhiteFideId "24171743"]
[BlackFideId "13515659"]
[WhiteElo "2514"]
[BlackElo "2259"]
[Result "1-0"]
[Round "07"]
[TimeControl "180+1"]
[Date "2022.04.26"]
[WhiteClock "0:01:39"]
[BlackClock "0:00:06"]

1. d4 {[%clk 0:02:59]}  Nf6 {[%clk 0:02:57]} 2. c4 {[%clk 0:03:00]}  g6 {[%clk 0:02:58]} 3. Nc3 {[%clk 0:02:59]}  d5 {[%clk 0:02:58]} 4. cxd5 {[%clk 0:02:58]}  Nxd5 {[%clk 0:02:59]} 5. e4 {[%clk 0:02:59]}  Nxc3 {[%clk 0:02:59]} 6. bxc3 {[%clk 0:02:59]}  Bg7 {[%clk 0:03:00]} 7. Nf3 {[%clk 0:03:00]}  c5 {[%clk 0:03:00]} 8. Be3 {[%clk 0:03:00]}  Qa5 {[%clk 0:03:00]} 9. Qd2 {[%clk 0:03:01]}  Nc6 {[%clk 0:02:59]} 10. Rb1 {[%clk 0:02:58]}  a6 {[%clk 0:02:50]} 11. Rc1 {[%clk 0:02:57]}  cxd4 {[%clk 0:02:50]} 12. cxd4 {[%clk 0:02:58]}  Qxd2+ {[%clk 0:02:50]} 13. Kxd2 {[%clk 0:02:59]}  O-O {[%clk 0:02:50]} 14. d5 {[%clk 0:02:56]}  Rd8 {[%clk 0:02:49]} 15. Bb6 {[%clk 0:02:42]}  Rd6 {[%clk 0:02:17]} 16. Bd3 {[%clk 0:02:33]}  Nb4 {[%clk 0:01:34]} 17. Bc5 {[%clk 0:02:31]}  Nxd3 {[%clk 0:01:33]} 18. Kxd3 {[%clk 0:02:31]}  Rd7 {[%clk 0:01:34]} 19. h3 {[%clk 0:02:27]}  b5 {[%clk 0:01:34]} 20. Bd4 {[%clk 0:02:20]}  f6 {[%clk 0:00:56]} 21. Rc5 {[%clk 0:02:09]}  Bb7 {[%clk 0:00:56]} 22. Rhc1 {[%clk 0:02:08]}  Rad8 {[%clk 0:00:55]} 23. Ke2 {[%clk 0:01:49]}  Bh6 {[%clk 0:00:33]} 24. R1c2 {[%clk 0:01:49]}  Bf8 {[%clk 0:00:33]} 25. Rc7 {[%clk 0:01:47]}  Kf7 {[%clk 0:00:33]} 26. Bb6 {[%clk 0:01:43]}  Ke8 {[%clk 0:00:30]} 27. Nd4 {[%clk 0:01:41]}  Rxc7 {[%clk 0:00:10]} 28. Rxc7 {[%clk 0:01:42]}  Ba8 {[%clk 0:00:10]} 29. Ne6 {[%clk 0:01:40]}  Rb8 {[%clk 0:00:10]} 30. Ba7 {[%clk 0:01:40]}  Rd8 {[%clk 0:00:05]} 31. Nxd8 {[%clk 0:01:39]}  Kxd8 {[%clk 0:00:06]} 32. Bb6 {[%clk 0:01:39]} 1-0


[Site "https://www.chess.com"]

[Event "Titled Tuesday Blitz April 26 Early 2022"]
[White "Dubov, Daniil"]
[Black "Bacrot, Etienne"]
[WhiteFideId "24126055"]
[BlackFideId "605506"]
[WhiteElo "2791"]
[BlackElo "2673"]
[Result "1-0"]
[Round "07"]
[TimeControl "180+1"]
[Date "2022.04.26"]
[WhiteClock "0:00:44"]
[BlackClock "0:00:05"]

1. d4 {[%clk 0:03:00]}  d5 {[%clk 0:02:59]} 2. c4 {[%clk 0:03:00]}  e6 {[%clk 0:02:59]} 3. Nf3 {[%clk 0:02:59]}  Nf6 {[%clk 0:03:00]} 4. g3 {[%clk 0:03:00]}  Be7 {[%clk 0:03:00]} 5. Bg2 {[%clk 0:03:00]}  O-O {[%clk 0:03:00]} 6. O-O {[%clk 0:03:01]}  dxc4 {[%clk 0:03:00]} 7. Qc2 {[%clk 0:03:01]}  b6 {[%clk 0:02:51]} 8. Bg5 {[%clk 0:02:59]}  Nd5 {[%clk 0:02:35]} 9. Bxe7 {[%clk 0:02:59]}  Qxe7 {[%clk 0:02:36]} 10. Nbd2 {[%clk 0:02:56]}  Ba6 {[%clk 0:02:26]} 11. Nxc4 {[%clk 0:02:40]}  c5 {[%clk 0:02:26]} 12. Rac1 {[%clk 0:02:24]}  Rc8 {[%clk 0:02:20]} 13. Nce5 {[%clk 0:02:13]}  f6 {[%clk 0:02:11]} 14. Nd3 {[%clk 0:02:07]}  Nd7 {[%clk 0:01:44]} 15. Qa4 {[%clk 0:01:47]}  Bxd3 {[%clk 0:01:23]} 16. exd3 {[%clk 0:01:47]}  Rc7 {[%clk 0:01:15]} 17. Rfe1 {[%clk 0:01:40]}  Rac8 {[%clk 0:01:13]} 18. Bh3 {[%clk 0:01:29]}  Nf8 {[%clk 0:01:07]} 19. dxc5 {[%clk 0:01:02]}  Rxc5 {[%clk 0:01:07]} 20. Rxc5 {[%clk 0:01:02]}  Rxc5 {[%clk 0:01:07]} 21. Nd4 {[%clk 0:00:49]}  e5 {[%clk 0:00:52]} 22. Nf5 {[%clk 0:00:49]}  Qc7 {[%clk 0:00:42]} 23. d4 {[%clk 0:00:49]}  Rc1 {[%clk 0:00:16]} 24. Rxc1 {[%clk 0:00:48]}  Qxc1+ {[%clk 0:00:16]} 25. Bf1 {[%clk 0:00:48]}  g6 {[%clk 0:00:08]} 26. Qb3 {[%clk 0:00:45]}  gxf5 {[%clk 0:00:08]} 27. Qxd5+ {[%clk 0:00:45]}  Kg7 {[%clk 0:00:08]} 28. dxe5 {[%clk 0:00:45]}  Qxb2 {[%clk 0:00:06]} 29. e6 {[%clk 0:00:45]}  Qb4 {[%clk 0:00:05]} 30. Qb7+ {[%clk 0:00:44]} 1-0


[Site "https://www.chess.com"]

[Event "Titled Tuesday Blitz April 26 Early 2022"]
[White "Fernandez Siles, Luis"]
[Black "Iljin, Timofey"]
[WhiteFideId "2209420"]
[BlackFideId "14110180"]
[WhiteElo "2212"]
[BlackElo "2396"]
[Result "1/2-1/2"]
[Round "07"]
[TimeControl "180+1"]
[Date "2022.04.26"]
[WhiteClock "0:01:25"]
[BlackClock "0:02:03"]

1. d4 {[%clk 0:02:52]}  d5 {[%clk 0:02:40]} 2. c4 {[%clk 0:02:50]}  e6 {[%clk 0:02:41]} 3. Nc3 {[%clk 0:02:50]}  Bb4 {[%clk 0:02:41]} 4. Nf3 {[%clk 0:02:49]}  Nf6 {[%clk 0:02:42]} 5. Bg5 {[%clk 0:02:45]}  h6 {[%clk 0:02:41]} 6. Bxf6 {[%clk 0:02:44]}  Qxf6 {[%clk 0:02:42]} 7. Qa4+ {[%clk 0:02:42]}  Nc6 {[%clk 0:02:42]} 8. e3 {[%clk 0:02:41]}  O-O {[%clk 0:02:43]} 9. cxd5 {[%clk 0:02:30]}  exd5 {[%clk 0:02:41]} 10. Be2 {[%clk 0:02:29]}  Be6 {[%clk 0:02:40]} 11. O-O {[%clk 0:02:28]}  a6 {[%clk 0:02:40]} 12. Rfc1 {[%clk 0:02:19]}  Bd6 {[%clk 0:02:39]} 13. Qd1 {[%clk 0:02:16]}  Qe7 {[%clk 0:02:37]} 14. Na4 {[%clk 0:02:12]}  Rad8 {[%clk 0:02:31]} 15. Nc5 {[%clk 0:02:10]}  Bc8 {[%clk 0:02:30]} 16. Qb3 {[%clk 0:02:03]}  Qe8 {[%clk 0:02:23]} 17. Nxb7 {[%clk 0:01:56]}  Bxb7 {[%clk 0:02:04]} 18. Qxb7 {[%clk 0:01:56]}  Nb4 {[%clk 0:02:05]} 19. a3 {[%clk 0:01:29]}  Rb8 {[%clk 0:02:04]} 20. Qa7 {[%clk 0:01:27]}  Ra8 {[%clk 0:02:04]} 21. Qb7 {[%clk 0:01:25]}  Rb8 {[%clk 0:02:04]} 22. Qa7 {[%clk 0:01:25]}  Ra8 {[%clk 0:02:02]} 23. Qb7 {[%clk 0:01:25]}  Rb8 {[%clk 0:02:03]} 1/2-1/2


[Site "https://www.chess.com"]

[Event "Titled Tuesday Blitz April 26 Early 2022"]
[White "Hamley, Ryan"]
[Black "Ambartsumova, Karina"]
[WhiteFideId "30959497"]
[BlackFideId "4166299"]
[WhiteElo "2441"]
[BlackElo "2262"]
[Result "0-1"]
[Round "07"]
[TimeControl "180+1"]
[Date "2022.04.26"]
[WhiteClock "0:00:55"]
[BlackClock "0:01:00"]

1. d4 {[%clk 0:02:59]}  Nf6 {[%clk 0:02:59]} 2. c4 {[%clk 0:03:00]}  g6 {[%clk 0:02:57]} 3. Nc3 {[%clk 0:03:00]}  Bg7 {[%clk 0:02:57]} 4. e4 {[%clk 0:02:59]}  O-O {[%clk 0:02:58]} 5. h3 {[%clk 0:02:59]}  d6 {[%clk 0:02:55]} 6. Be3 {[%clk 0:02:59]}  a6 {[%clk 0:02:39]} 7. g4 {[%clk 0:02:56]}  c6 {[%clk 0:02:39]} 8. Nge2 {[%clk 0:02:53]}  b5 {[%clk 0:02:38]} 9. Ng3 {[%clk 0:02:53]}  bxc4 {[%clk 0:02:38]} 10. Bxc4 {[%clk 0:02:53]}  d5 {[%clk 0:02:34]} 11. exd5 {[%clk 0:02:53]}  Nxd5 {[%clk 0:02:33]} 12. Nxd5 {[%clk 0:02:46]}  cxd5 {[%clk 0:02:34]} 13. Be2 {[%clk 0:02:44]}  e5 {[%clk 0:02:27]} 14. O-O {[%clk 0:02:36]}  Nc6 {[%clk 0:02:20]} 15. dxe5 {[%clk 0:02:35]}  Nxe5 {[%clk 0:02:12]} 16. Bd4 {[%clk 0:02:32]}  Bb7 {[%clk 0:02:07]} 17. Re1 {[%clk 0:02:31]}  Qh4 {[%clk 0:01:56]} 18. Kg2 {[%clk 0:02:24]}  Rfe8 {[%clk 0:01:51]} 19. Rc1 {[%clk 0:02:14]}  Qe7 {[%clk 0:01:38]} 20. Qb3 {[%clk 0:02:08]}  Qd7 {[%clk 0:01:27]} 21. Qb6 {[%clk 0:01:59]}  Nc4 {[%clk 0:01:21]} 22. Qc5 {[%clk 0:01:23]}  Rec8 {[%clk 0:01:11]} 23. Qb4 {[%clk 0:00:59]}  Bxd4 {[%clk 0:01:08]} 24. b3 {[%clk 0:00:59]}  Bc5 {[%clk 0:01:01]} 25. Qc3 {[%clk 0:00:55]}  d4+ {[%clk 0:01:00]} 0-1


[Site "https://www.chess.com"]

[Event "Titled Tuesday Blitz April 26 Early 2022"]
[White "Hasangatin, Ramil"]
[Black "Rustemov, Alexander"]
[WhiteFideId "4122160"]
[BlackFideId "4119002"]
[WhiteElo "2375"]
[BlackElo "2840"]
[Result "1-0"]
[Round "07"]
[TimeControl "180+1"]
[Date "2022.04.26"]
[WhiteClock "0:00:26"]
[BlackClock "0:00:01"]

1. d4 {[%clk 0:03:00]}  d5 {[%clk 0:02:58]} 2. Nf3 {[%clk 0:03:01]}  Nf6 {[%clk 0:02:57]} 3. c3 {[%clk 0:03:01]}  Bf5 {[%clk 0:02:52]} 4. Qb3 {[%clk 0:03:01]}  b6 {[%clk 0:02:49]} 5. Bf4 {[%clk 0:03:01]}  e6 {[%clk 0:02:48]} 6. e3 {[%clk 0:03:01]}  Bd6 {[%clk 0:02:41]} 7. Bxd6 {[%clk 0:03:01]}  Qxd6 {[%clk 0:02:40]} 8. c4 {[%clk 0:03:02]}  O-O {[%clk 0:02:31]} 9. Nc3 {[%clk 0:03:02]}  c5 {[%clk 0:02:31]} 10. dxc5 {[%clk 0:02:59]}  bxc5 {[%clk 0:02:29]} 11. Rd1 {[%clk 0:02:53]}  Rd8 {[%clk 0:02:18]} 12. Be2 {[%clk 0:02:49]}  Nc6 {[%clk 0:02:15]} 13. O-O {[%clk 0:02:49]}  Rab8 {[%clk 0:02:09]} 14. Qa3 {[%clk 0:02:47]}  Qe7 {[%clk 0:01:35]} 15. Nh4 {[%clk 0:02:26]}  d4 {[%clk 0:01:29]} 16. Nxf5 {[%clk 0:02:19]}  exf5 {[%clk 0:01:28]} 17. Nd5 {[%clk 0:02:19]}  Qd6 {[%clk 0:01:10]} 18. Nxf6+ {[%clk 0:01:53]}  Qxf6 {[%clk 0:01:09]} 19. Bf3 {[%clk 0:01:54]}  Qd6 {[%clk 0:00:52]} 20. exd4 {[%clk 0:01:45]}  Nxd4 {[%clk 0:00:51]} 21. Bd5 {[%clk 0:01:45]}  Qb6 {[%clk 0:00:45]} 22. Kh1 {[%clk 0:01:36]}  a5 {[%clk 0:00:39]} 23. b3 {[%clk 0:01:24]}  Re8 {[%clk 0:00:38]} 24. Qc1 {[%clk 0:01:18]}  g6 {[%clk 0:00:38]} 25. Rfe1 {[%clk 0:01:15]}  Kg7 {[%clk 0:00:37]} 26. Re3 {[%clk 0:01:09]}  Qf6 {[%clk 0:00:28]} 27. Rde1 {[%clk 0:01:08]}  Rxe3 {[%clk 0:00:27]} 28. fxe3 {[%clk 0:01:08]}  Ne6 {[%clk 0:00:24]} 29. Qa3 {[%clk 0:01:08]}  Qc3 {[%clk 0:00:21]} 30. Qc1 {[%clk 0:00:55]}  Qxc1 {[%clk 0:00:20]} 31. Rxc1 {[%clk 0:00:56]}  Kf6 {[%clk 0:00:20]} 32. Kg1 {[%clk 0:00:52]}  Ke5 {[%clk 0:00:21]} 33. Kf2 {[%clk 0:00:52]}  Rb4 {[%clk 0:00:20]} 34. Ke2 {[%clk 0:00:46]}  a4 {[%clk 0:00:21]} 35. Rb1 {[%clk 0:00:43]}  axb3 {[%clk 0:00:21]} 36. axb3 {[%clk 0:00:43]}  f6 {[%clk 0:00:17]} 37. Kd2 {[%clk 0:00:42]}  Ng5 {[%clk 0:00:17]} 38. Kc2 {[%clk 0:00:40]}  Ne4 {[%clk 0:00:17]} 39. Ra1 {[%clk 0:00:41]}  f4 {[%clk 0:00:12]} 40. exf4+ {[%clk 0:00:37]}  Kxf4 {[%clk 0:00:13]} 41. Rf1+ {[%clk 0:00:36]}  Ke5 {[%clk 0:00:14]} 42. Bxe4 {[%clk 0:00:36]}  Kxe4 {[%clk 0:00:14]} 43. Rxf6 {[%clk 0:00:37]}  Rb7 {[%clk 0:00:14]} 44. Re6+ {[%clk 0:00:35]}  Kd4 {[%clk 0:00:13]} 45. Rd6+ {[%clk 0:00:35]}  Ke3 {[%clk 0:00:14]} 46. Rd5 {[%clk 0:00:33]}  Rc7 {[%clk 0:00:13]} 47. Kc3 {[%clk 0:00:31]}  h5 {[%clk 0:00:12]} 48. Rd3+ {[%clk 0:00:29]}  Kf2 {[%clk 0:00:11]} 49. Rg3 {[%clk 0:00:30]}  Rc6 {[%clk 0:00:11]} 50. Rg5 {[%clk 0:00:30]}  h4 {[%clk 0:00:10]} 51. h3 {[%clk 0:00:30]}  Ke3 {[%clk 0:00:10]} 52. Rg4 {[%clk 0:00:29]}  Kf2 {[%clk 0:00:10]} 53. b4 {[%clk 0:00:29]}  cxb4+ {[%clk 0:00:09]} 54. Kxb4 {[%clk 0:00:30]}  Re6 {[%clk 0:00:06]} 55. c5 {[%clk 0:00:29]}  Re2 {[%clk 0:00:01]} 56. c6 {[%clk 0:00:27]}  Rb2+ {[%clk 0:00:01]} 57. Kc5 {[%clk 0:00:27]}  Rc2+ {[%clk 0:00:01]} 58. Kb6 {[%clk 0:00:27]}  Rb2+ {[%clk 0:00:01]} 59. Ka7 {[%clk 0:00:27]}  Ra2+ {[%clk 0:00:01]} 60. Kb7 {[%clk 0:00:28]}  Rb2+ {[%clk 0:00:02]} 61. Kc8 {[%clk 0:00:28]}  Rc2 {[%clk 0:00:02]} 62. c7 {[%clk 0:00:28]}  Ke3 {[%clk 0:00:02]} 63. Rxg6 {[%clk 0:00:27]}  Kf2 {[%clk 0:00:02]} 64. Rg4 {[%clk 0:00:27]}  Rc3 {[%clk 0:00:01]} 65. Rg7 {[%clk 0:00:26]}  Kg1 {[%clk 0:00:01]} 66. Kd8 {[%clk 0:00:26]} 1-0


[Site "https://www.chess.com"]